bitfinex-derivatives/quotes_SOLF0:USTF0_20240905
["timestamp","ask_amount","ask_price","bid_price","bid_amount"]
[1725550157145,3.8283,130.61,130.6,0.05754956]
[1725550157749,30.83,130.61,130.48,1.4044]
[1725550158246,30.83,130.61,130.48,32.2344]
[1725550158437,30.83,130.63,130.48,32.2344]
[1725550158743,0.04975393,130.57,130.54,0.05302969]
[1725550159038,0.04975393,130.57,130.54,0.05310003]
[1725550159039,0.0577846,130.57,130.54,0.05310003]
[1725550159638,0.0577846,130.57,130.54,3.88290003]
[1725550159839,0.0577846,130.57,130.54,0.05310003]
[1725550161141,0.0577846,130.57,130.54,3.88300003]
[1725550161344,0.0577846,130.57,130.54,0.05310003]
[1725550161548,30.83,130.67,130.53,3.73899306]
[1725550161750,3.8276,130.63,130.57,3.8289]
[1725550161950,30.83,130.67,130.57,3.89071365]
[1725550162142,3.8275,130.63,130.52,30.83]
[1725550162449,30.83,130.67,130.52,30.83]
[1725550162645,0.05804519,130.61,130.58,0.05329196]
[1725550162846,0.05804519,130.61,130.58,3.79323833]
[1725550162847,0.05762277,130.61,130.58,3.79323833]
[1725550163042,0.05762277,130.61,130.58,0.05232961]
[1725550163248,0.05762277,130.61,130.59,3.8283]
[1725550163644,3.8273,130.64,130.59,7.61468174]
[1725550163843,3.8269,130.65,130.6,3.8282]
[1725550164041,0.2233,130.75,130.59,1.3319]
[1725550164042,30.83,130.72,130.59,1.3319]
[1725550164346,30.83,130.72,130.6,30.83]
[1725550164544,30.83,130.74,130.62,30.83]
[1725550164747,0.05884181,130.69,130.67,0.05829273]
[1725550164949,0.05664355,130.69,130.67,3.88429273]
[1725550165144,0.05664355,130.69,130.67,0.05829273]
[1725550165351,30.83,130.78,130.68,3.8259]
[1725550165546,30.83,130.78,130.65,30.83]
[1725550166247,30.83,130.78,130.68,3.8257]
[1725550166448,0.05251593,130.73,130.7,0.05255366]
[1725550166647,0.05251593,130.73,130.7,0.04872996]
[1725550166850,3.87711593,130.73,130.7,0.04872996]
[1725550167045,0.05251593,130.73,130.7,0.04872996]
[1725550167246,0.05251593,130.73,130.71,3.8249]
[1725550167749,3.87711593,130.73,130.7,0.04872996]
[1725550167946,0.05251593,130.73,130.7,0.04872996]
[1725550168955,3.825,130.71,130.7,0.04872996]
[1725550169543,3.8261,130.68,130.6,32.1424]
[1725550169746,3.8261,130.68,130.6,35.94483417]
[1725550170057,3.8257,130.69,130.64,3.8269]
[1725550170243,30.83,130.73,130.6,35.94483417]
[1725550170448,0.05207903,130.68,130.65,0.05395425]
[1725550170653,0.05466242,130.68,130.66,3.8265]
[1725550171249,3.8253,130.71,130.66,3.8265]
[1725550171852,3.8248,130.72,130.67,3.81938595]
[1725550172048,30.83,130.76,130.63,30.83]
[1725550172253,0.05515777,130.71,130.68,0.05482308]
[1725550172452,0.05515777,130.71,130.68,3.85806923]
[1725550172651,30.83,130.78,130.68,3.85806923]
[1725550172855,3.824,130.75,130.7,3.8252]
[1725550173153,30.83,130.81,130.69,1.386]
[1725550173357,3.824,130.75,130.69,1.386]
[1725550173554,30.83,130.81,130.69,1.386]
[1725550173855,3.79258862,130.82,130.74,0.05878578]
[1725550173856,3.8239,130.75,130.74,0.05878578]
[1725550174051,3.8239,130.75,130.69,5.2114]
[1725550174052,30.87851951,130.76,130.73,0.05185836]
[1725550174358,30.87851951,130.76,130.66,3.8264]
[1725550174359,30.87969962,130.76,130.66,3.8264]
[1725550174550,30.83,130.76,130.63,30.83]
[1725550174753,30.83,130.73,130.62,1.386]
[1725550174956,30.83,130.71,130.62,1.386]
[1725550175254,30.83,130.68,130.61,1.4224]
[1725550175450,3.8273,130.64,130.63,0.05111343]
[1725550175655,0.05545353,130.66,130.63,0.05111343]
[1725550175850,3.8268,130.65,130.63,0.05111343]
[1725550176152,0.05545353,130.66,130.63,0.05111343]
[1725550176558,3.88215353,130.66,130.63,0.05111343]
[1725550176855,0.05545353,130.66,130.63,0.05111343]
[1725550177062,0.05545353,130.66,130.63,3.87851343]
[1725550177360,0.05545353,130.66,130.63,0.05111343]
[1725550177664,3.8255,130.7,130.61,1.4224]
[1725550178359,3.8248,130.72,130.64,30.83]
[1725550178653,3.8248,130.72,130.61,1.4224]
[1725550178654,0.05098393,130.69,130.67,30.87906146]
[1725550178853,0.05098393,130.69,130.67,34.79886795]
[1725550178854,0.05250145,130.69,130.67,34.79886795]
[1725550179061,3.8245,130.73,130.67,34.74629011]
[1725550179356,30.83,130.8,130.67,34.74629011]
[1725550179563,30.83,130.78,130.67,3.91629011]
[1725550179856,30.83,130.75,130.65,1.2907]
[1725550180058,30.83,130.75,130.71,0.05748072]
[1725550180258,0.05122403,130.74,130.71,0.05748072]
[1725550180760,3.8247,130.72,130.71,0.05748072]
[1725550181158,0.05122403,130.74,130.71,0.05748072]
[1725550181159,3.8245,130.73,130.71,0.05748072]
[1725550183165,3.8247,130.72,130.71,0.05748072]
[1725550184462,34.70927214,130.75,130.65,1.2907]
[1725550184865,30.83,130.73,130.65,1.2907]
[1725550185263,30.83,130.73,130.59,30.83]
[1725550185469,0.04952788,130.68,130.66,0.0497696]
[1725550185768,3.8843751,130.68,130.66,0.0497696]
[1725550185959,0.0582751,130.68,130.66,0.0497696]
[1725550186158,0.0582751,130.68,130.67,7.63658214]
[1725550186567,30.83,130.78,130.67,3.81038214]
[1725550186864,3.8246,130.73,130.64,30.83]
[1725550187263,3.8247,130.73,130.68,3.8258]
[1725550187462,0.05030537,130.72,130.69,0.0528592]
[1725550187660,0.05833123,130.72,130.69,0.05047174]
[1725550188263,0.05833123,130.72,130.69,3.87607174]
[1725550188665,0.05833123,130.72,130.69,0.05047174]
[1725550189666,3.825,130.71,130.69,0.05047174]
[1725550190370,3.8253,130.7,130.69,0.05047174]
[1725550191374,30.83,130.73,130.6,32.2562]
[1725550191571,30.83,130.73,130.61,3.88127679]
[1725550191772,30.83,130.73,130.61,1.3398]
[1725550192068,3.8257,130.69,130.61,5.22949687]
[1725550192270,0.05804425,130.66,130.64,0.05204282]
[1725550192575,34.73615431,130.76,130.65,30.83]
[1725550192766,0.05637388,130.72,130.69,0.05785258]
[1725550192967,3.8253,130.7,130.69,0.05785258]
[1725550193165,7.6479,130.75,130.61,5.22949687]
[1725550193368,30.83,130.72,130.61,5.22949687]
[1725550193566,30.83,130.72,130.62,3.8275]
[1725550193771,30.83,130.69,130.61,1.3398]
[1725550193967,3.827,130.65,130.61,1.3398]
[1725550194162,0.05058789,130.64,130.62,0.05296949]
[1725550195664,3.8249,130.72,130.67,3.826]
[1725550195970,0.2464,130.75,130.66,3.92359516]
[1725550196169,3.8252,130.71,130.66,3.8264]
[1725550196676,0.05626025,130.7,130.67,3.88229402]
[1725550196974,0.05626025,130.7,130.67,0.05219669]
[1725550197372,3.88176025,130.7,130.67,0.05219669]
[1725550197575,0.05626025,130.7,130.67,0.05219669]
[1725550197773,3.8259,130.68,130.67,0.05219669]
[1725550198269,30.83,130.7,130.61,1.3398]
[1725550198574,30.83,130.7,130.6,5.2543]
[1725550198774,30.83,130.7,130.6,1.4262]
[1725550198970,30.83,130.72,130.6,1.4262]
[1725550199164,0.223,130.74,130.6,1.4262]
[1725550199165,0.05016842,130.67,130.65,0.05314448]
[1725550199369,0.05016842,130.67,130.65,3.87974448]
[1725550199572,0.05016842,130.67,130.66,3.77048552]
[1725550199983,0.05016842,130.67,130.65,0.05314448]
[1725550200378,3.8265,130.66,130.65,0.05314448]
[1725550200775,0.05016842,130.67,130.6,1.4262]
[1725550200971,30.83,130.64,130.53,30.83]
[1725550201277,30.83,130.64,130.52,4.1123]
[1725550201472,30.83,130.64,130.52,7.97391739]
[1725550201979,0.05041463,130.59,130.57,0.04890402]
[1725550202177,0.05238196,130.59,130.57,0.05465185]
[1725550202578,3.8288,130.58,130.57,0.05465185]
[1725550202968,30.83,130.59,130.47,30.83]
[1725550203174,34.6526062,130.62,130.47,34.66065137]
[1725550203473,30.83,130.62,130.47,34.66065137]
[1725550203772,30.83,130.59,130.47,3.83065137]
[1725550203977,0.048601,130.54,130.52,0.04984491]
[1725550204275,0.048601,130.54,130.44,3.7777831]
[1725550204276,30.83,130.54,130.44,3.7777831]
[1725550204475,30.83,130.54,130.41,30.83]
[1725550204674,34.62080862,130.54,130.41,34.64762586]
[1725550204882,30.83,130.54,130.41,34.64762586]
[1725550205091,34.71198724,130.54,130.41,34.64762586]
[1725550205377,0.05206693,130.49,130.46,0.05332743]
[1725550205592,0.05206693,130.49,130.41,34.64762586]
[1725550205778,0.05118402,130.46,130.44,0.05821826]
[1725550205976,0.05332647,130.46,130.44,0.05557783]
[1725550206681,30.83,130.56,130.41,34.62083388]
[1725550206869,3.79275057,130.57,130.44,30.83]
[1725550207179,30.83,130.58,130.44,30.83]
[1725550207576,3.86865158,130.57,130.44,34.72625195]
[1725550207781,0.05426082,130.52,130.49,0.05305009]
[1725550208080,3.8312,130.5,130.49,0.05043294]
[1725550208778,30.83,130.51,130.39,2.6842]
[1725550209075,30.83,130.48,130.4,1.40801783]
[1725550209276,30.83,130.48,130.39,2.6842]
[1725550209581,30.83,130.46,130.38,3.91114199]
[1725550209778,3.8338,130.42,130.41,0.05281913]
[1725550209981,0.05045858,130.43,130.39,1.40809387]
[1725550209982,30.88045858,130.43,130.39,1.40809387]
[1725550210178,3.8344,130.39,130.38,0.02]
[1725550210770,34.68163995,130.43,130.38,0.02]
[1725550210975,30.83,130.43,130.39,0.05278269]
[1725550211174,3.8341,130.4,130.39,0.05278269]
[1725550211675,3.8344,130.39,130.38,0.02]
[1725550212076,0.05479281,130.42,130.38,0.02]
[1725550212475,0.05479281,130.42,130.38,4.12289347]
[1725550212682,0.05479281,130.42,130.39,1.43147732]
[1725550213181,0.05479281,130.42,130.39,0.02298385]
[1725550214680,30.83,130.4,130.39,0.02298385]
[1725550214887,61.66,130.4,130.31,1.40854213]
[1725550215075,30.83,130.33,130.22,1.3232]
[1725550215280,34.63908532,130.33,130.23,1.40859944]
[1725550215478,3.8379,130.28,130.23,1.40859944]
[1725550215780,0.05354146,130.27,130.23,1.40859944]
[1725550215978,0.05354146,130.27,130.23,5.31711092]
[1725550216181,0.05354146,130.27,130.24,1.40859944]
[1725550216579,0.05354146,130.27,130.25,1.40859944]
[1725550216778,0.05354146,130.27,130.26,1.40859944]
[1725550216979,30.83,130.31,130.26,1.40859944]
[1725550217188,0.05360913,130.3,130.27,1.40859944]
[1725550217485,0.0495313,130.3,130.28,1.40859944]
[1725550217684,0.05495574,130.3,130.29,1.40859944]
[1725550217982,0.04937386,130.31,130.29,1.40859944]
[1725550218183,0.04937386,130.31,130.3,1.40859944]
[1725550218481,0.04937386,130.31,130.25,1.40859944]
[1725550218982,0.04937386,130.31,130.26,1.40866949]
[1725550219179,0.04937386,130.31,130.26,30.83]
[1725550219379,0.04937386,130.31,130.27,2.72286949]
[1725550219592,0.04937386,130.31,130.28,1.40866949]
[1725550221787,3.88637386,130.31,130.29,1.40866949]
[1725550221985,3.88637386,130.31,130.24,1.3034]
[1725550221986,0.04937386,130.31,130.27,1.40866949]
[1725550222187,0.04937386,130.31,130.28,1.40866949]
[1725550222493,0.04937386,130.31,130.25,1.40866949]
[1725550222686,0.04937386,130.31,130.26,32.2386523]
[1725550222882,0.04937386,130.31,130.28,3.8376]
[1725550223081,0.04937386,130.31,130.29,1.4086523]
[1725550223282,0.04937386,130.31,130.28,1.4086523]
[1725550223578,0.04937386,130.31,130.29,5.2457523]
[1725550223774,30.83,130.39,130.33,0.04937386]
[1725550223983,3.836,130.34,130.31,1.4086523]
[1725550224181,30.83,130.39,130.32,1.4086523]
[1725550224488,3.8357,130.35,130.33,1.40860593]
[1725550224788,0.05435464,130.35,130.33,0.04937386]
[1725550225880,0.05435464,130.35,130.33,1.45798315]
[1725550226086,3.8359,130.34,130.33,0.04937386]
[1725550226587,3.8359,130.34,130.33,0.00287386]
[1725550227283,3.89005464,130.35,130.33,0.00287386]
[1725550227484,0.05435464,130.35,130.33,0.00287386]
[1725550227885,0.05435464,130.35,130.34,3.8359]
[1725550228090,30.83,130.44,130.33,30.83]
[1725550228287,30.83,130.47,130.34,1.40856837]
[1725550228489,30.83,130.49,130.36,30.83]
[1725550228686,3.8664232,130.48,130.37,2.80686837]
[1725550228882,3.8326,130.45,130.39,3.8342]
[1725550229082,0.05391975,130.43,130.41,0.04871775]
[1725550229283,0.0535535,130.43,130.41,0.04871775]
[1725550230083,3.8335,130.42,130.41,0.04871775]
[1725550230279,0.0535535,130.43,130.39,1.40830787]
[1725550230478,3.8346,130.39,130.35,1.4112]
[1725550230683,30.83,130.44,130.36,1.40842732]
[1725550231286,30.83,130.48,130.36,1.40842732]
[1725550231287,0.05843668,130.41,130.36,1.40842732]
[1725550232689,0.05843668,130.41,130.37,3.77571201]
[1725550232892,0.05843668,130.41,130.38,1.40842732]
[1725550233190,0.05843668,130.41,130.38,5.30076364]
[1725550233484,0.05843668,130.41,130.39,1.40842732]
[1725550233884,0.05843668,130.41,130.35,1.4112]
[1725550234084,3.8343,130.4,130.36,1.40838939]
[1725550234496,3.8343,130.4,130.37,1.40840076]
[1725550234688,3.8343,130.4,130.38,1.40840076]
[1725550234890,3.89233668,130.41,130.35,1.4112]
[1725550235095,3.89233668,130.41,130.36,1.40834583]
[1725550235386,3.835,130.37,130.36,1.40834583]
[1725550235782,3.835,130.37,130.34,1.40834583]
[1725550236385,0.05139997,130.38,130.34,1.40834583]
[1725550236585,0.05139997,130.38,130.35,1.40834583]
[1725550236784,0.05139997,130.38,130.36,1.40834583]
[1725550236987,0.05139997,130.38,130.37,1.40834583]
[1725550237194,0.05139997,130.38,130.28,1.3385]
[1725550237398,3.837,130.31,130.29,1.40850272]
[1725550237693,0.05351058,130.31,130.29,1.40850272]
[1725550237885,0.05351058,130.31,130.3,1.40850921]
[1725550238683,0.05351058,130.31,130.25,1.40850921]
[1725550238885,0.05351058,130.31,130.26,1.40850921]
[1725550239090,3.8372,130.3,130.27,1.40850921]
[1725550239297,3.8372,130.3,130.28,1.40850921]
[1725550239484,3.8372,130.3,130.29,1.40850921]
[1725550239688,0.05351058,130.31,130.26,1.40850921]
[1725550239888,0.05351058,130.31,130.27,1.40850921]
[1725550240087,0.05351058,130.31,130.28,5.24600921]
[1725550240294,0.05351058,130.31,130.29,1.40850921]
[1725550241387,0.05351058,130.31,130.3,1.40850921]
[1725550241796,0.05351058,130.31,130.28,1.40849777]
[1725550242089,30.83,130.39,130.29,1.40849777]
[1725550242294,30.83,130.39,130.3,5.26108752]
[1725550242495,30.83,130.39,130.31,1.40849777]
[1725550242699,30.83,130.39,130.32,1.40849777]
[1725550242898,30.83,130.39,130.27,1.40849777]
[1725550243090,3.8352,130.37,130.34,0.0552711]
[1725550243291,0.058282,130.37,130.34,0.05829272]
[1725550243897,0.058282,130.37,130.34,1.46679049]
[1725550244090,0.058282,130.37,130.34,0.05829272]
[1725550244399,3.893482,130.37,130.34,0.05829272]
[1725550244595,0.058282,130.37,130.34,0.05829272]
[1725550245493,3.8355,130.36,130.34,0.05829272]
[1725550245705,0.058282,130.37,130.34,0.05829272]
[1725550246091,3.8353,130.36,130.34,0.05829272]
[1725550246292,0.058282,130.37,130.34,0.05829272]
[1725550246588,3.8356,130.35,130.34,0.00999272]
[1725550248789,3.8354,130.36,130.34,0.00999272]
[1725550249296,0.058282,130.37,130.34,0.00999272]
[1725550249597,34.74000537,130.45,130.34,1.31069272]
[1725550249899,34.74000537,130.45,130.34,1.3007]
[1725550249900,5.5235258,130.44,130.34,1.3007]
[1725550250198,30.83,130.47,130.35,4.16948706]
[1725550250392,3.85241495,130.5,130.36,30.83]
[1725550250701,0.05570223,130.44,130.42,0.05485924]
[1725550250900,0.05446593,130.44,130.42,0.05785599]
[1725550251395,0.05446593,130.44,130.35,2.7612]
[1725550251396,30.83,130.43,130.35,2.7612]
[1725550252202,30.83,130.45,130.35,2.7612]
[1725550252506,0.05164565,130.41,130.36,3.8351]
[1725550252703,0.05164565,130.41,130.35,2.7612]
[1725550253096,0.05164565,130.41,130.36,3.8353]
[1725550253293,0.05164565,130.41,130.35,2.7612]
[1725550254198,30.83,130.48,130.35,2.7612]
[1725550254793,3.8329,130.45,130.38,3.8345]
[1725550255101,0.05553241,130.43,130.4,0.05409096]
[1725550255300,30.83,130.55,130.42,3.8334]
[1725550255301,3.8314,130.5,130.42,3.8334]
[1725550255596,111.83,130.7,130.27,7.6756]
[1725550255597,30.83,130.54,130.27,7.6756]
[1725550255900,30.83,130.52,130.41,3.8336]
[1725550256101,3.84157974,130.55,130.42,2.7985]
[1725550256296,0.0547099,130.5,130.47,0.05267011]
[1725550256489,3.8318,130.48,130.47,0.0566921]
[1725550256694,0.05795742,130.5,130.47,0.0566921]
[1725550257694,30.83,130.59,130.47,0.0566921]
[1725550257901,30.83,130.62,130.47,30.83]
[1725550258102,30.83,130.62,130.51,3.8307]
[1725550258404,30.83,130.6,130.52,6.50946157]
[1725550258700,30.83,130.6,130.55,0.05282608]
[1725550258701,0.05541879,130.57,130.55,0.05282608]
[1725550259198,0.05541879,130.57,130.52,6.47610779]
[1725550259199,0.1154,130.68,130.52,6.47610779]
[1725550259399,30.83,130.68,130.52,37.30610779]
[1725550259600,30.83,130.65,130.52,37.30610779]
[1725550259804,30.83,130.63,130.52,6.47610779]
[1725550260100,0.04982444,130.59,130.56,0.0558636]
[1725550260304,0.05151498,130.59,130.56,0.05121461]
[1725550261338,34.59525443,130.69,130.55,30.83]
[1725550261499,30.83,130.69,130.55,30.83]
[1725550261703,3.8266,130.66,130.58,30.83]
[1725550261904,34.75583512,130.72,130.58,30.83]
[1725550262102,30.83,130.7,130.54,30.83]
[1725550262298,0.1733,130.73,130.61,0.05556662]
[1725550262299,0.05829778,130.63,130.61,0.05556662]
[1725550262503,30.83,130.73,130.61,2.7252]
[1725550262703,3.8255,130.7,130.61,2.7252]
[1725550262903,30.83,130.75,130.63,30.83]
[1725550263098,3.78409439,130.76,130.63,30.83]
[1725550263303,30.83,130.73,130.63,3.81129328]
[1725550263508,30.83,130.68,130.52,3.74520779]
[1725550263705,30.83,130.65,130.53,4.1138]
[1725550263911,30.83,130.68,130.53,38.81562041]
[1725550264403,30.83,130.65,130.53,7.98562041]
[1725550264606,0.05191869,130.6,130.58,0.05745275]
[1725550264810,34.64645472,130.65,130.58,0.05745275]
[1725550265007,0.04898771,130.6,130.58,0.05745275]
[1725550265197,30.83,130.65,130.58,0.05745275]
[1725550265408,0.0559307,130.63,130.58,0.05745275]
[1725550265905,0.0559307,130.63,130.58,30.88745275]
[1725550266106,34.6386117,130.73,130.58,30.83]
[1725550266306,6.16595305,130.72,130.63,3.8272]
[1725550266498,34.6386117,130.73,130.63,3.8272]
[1725550266703,34.6386117,130.73,130.62,6.5052995]
[1725550266903,5.54375388,130.72,130.62,6.5052995]
[1725550267201,0.05614806,130.68,130.66,0.0515042]
[1725550267407,30.88614806,130.68,130.56,30.83]
[1725550267598,3.8282,130.61,130.54,7.9275]
[1725550267804,30.83,130.65,130.54,4.0976]
[1725550268004,30.83,130.65,130.54,7.93700879]
[1725550268308,30.83,130.67,130.54,7.93700879]
[1725550268510,0.05256376,130.62,130.59,0.05634458]
[1725550268711,0.05256376,130.62,130.59,0.05682853]
[1725550270906,3.8282,130.6,130.59,0.05682853]
[1725550271210,3.84959967,130.62,130.49,30.83]
[1725550271407,30.83,130.6,130.48,2.7635]
[1725550271706,30.83,130.57,130.48,2.7635]
[1725550271914,30.83,130.57,130.48,10.3808312]
[1725550272103,0.04928331,130.54,130.51,0.05872309]
[1725550274711,0.04928331,130.54,130.53,3.8303]
[1725550275017,30.83,130.63,130.52,32.2029]
[1725550275210,5.53292043,130.62,130.52,32.2029]
[1725550275410,5.53292043,130.62,130.52,1.3729]
[1725550275610,39.11847257,130.61,130.52,1.3729]
[1725550275907,0.05346309,130.58,130.55,0.05519134]
[1725550276108,30.83,130.56,130.48,2.7635]
[1725550276308,30.83,130.56,130.43,1.3387]
[1725550276514,3.8306,130.52,130.43,1.3387]
[1725550276702,30.83,130.56,130.43,1.3387]
[1725550276904,34.59131323,130.56,130.43,1.3387]
[1725550277109,0.05722681,130.51,130.48,0.04926213]
[1725550277408,0.05722681,130.51,130.48,0.05258492]
[1725550278112,30.83,130.61,130.48,3.92424474]
[1725550278310,13.20307189,130.6,130.49,30.83]
[1725550278514,5.53703742,130.59,130.52,30.83]
[1725550278713,3.80041404,130.63,130.53,1.3387]
[1725550278915,0.0547443,130.59,130.57,0.05069167]
[1725550279114,0.04986255,130.59,130.57,0.05069167]
[1725550279412,5.53711678,130.58,130.44,30.83]
[1725550279614,30.83,130.56,130.42,34.9689]
[1725550279811,3.8309,130.51,130.42,37.56862708]
[1725550280012,3.8309,130.51,130.43,1.3157]
[1725550280213,34.6376982,130.56,130.43,1.3157]
[1725550280408,0.05015389,130.51,130.48,0.05361813]
[1725550280614,30.88015389,130.51,130.48,0.05110745]
[1725550280811,3.8315,130.49,130.48,0.05110745]
[1725550281113,0.05015389,130.51,130.48,0.05110745]
[1725550281713,0.05015389,130.51,130.48,3.87127616]
[1725550282011,3.85966257,130.6,130.48,34.65016871]
[1725550282213,5.53410663,130.59,130.48,30.83]
[1725550282417,5.53410663,130.59,130.49,1.3758]
[1725550282623,31.0477,130.63,130.51,30.83]
[1725550282823,31.0477,130.63,130.52,1.3649]
[1725550283120,0.05833738,130.58,130.56,0.05614603]
[1725550283316,0.0576585,130.58,130.56,0.05614603]
[1725550284221,30.83,130.66,130.56,0.05614603]
[1725550284420,30.83,130.66,130.53,30.83]
[1725550284421,13.81761476,130.65,130.53,30.83]
[1725550284628,5.53023307,130.64,130.53,30.83]
[1725550284922,30.83,130.68,130.56,30.83]
[1725550285127,5.5309506,130.67,130.57,3.76666666]
[1725550285325,0.05700265,130.63,130.61,0.05515475]
[1725550286630,30.83,130.71,130.58,30.83]
[1725550286631,3.92337164,130.71,130.58,30.83]
[1725550286817,30.83,130.73,130.57,5.16336666]
[1725550287022,30.83,130.7,130.57,5.16336666]
[1725550287224,6.15865665,130.72,130.57,5.16336666]
[1725550287225,30.83,130.68,130.57,5.16336666]
[1725550287430,3.8276,130.63,130.61,0.05066487]
[1725550287923,0.05767514,130.64,130.61,0.05066487]
[1725550288625,3.8277,130.62,130.61,0.05066487]
[1725550288831,30.83,130.63,130.52,1.3649]
[1725550289220,3.8287,130.59,130.53,3.8301]
[1725550289826,0.05770697,130.57,130.55,0.05727256]
[1725550290033,0.05394369,130.57,130.55,0.05126158]
[1725550290934,3.8294,130.56,130.55,0.05126158]
[1725550292238,0.05394369,130.57,130.55,0.05126158]
[1725550292636,3.8294,130.56,130.55,0.05126158]
[1725550293137,0.05394369,130.57,130.55,0.05126158]
[1725550293739,3.8294,130.56,130.55,0.05126158]
[1725550293944,30.83,130.58,130.49,1.2956]
[1725550294143,3.85517241,130.62,130.47,1.3679]
[1725550294144,30.83,130.56,130.47,1.3679]
[1725550294836,3.8311,130.51,130.5,0.05807251]
[1725550295040,0.04833553,130.53,130.5,0.05807251]
[1725550295433,5.53770241,130.57,130.51,30.83]
[1725550295636,3.76081795,130.69,130.54,30.83]
[1725550295637,30.83,130.67,130.54,30.83]
[1725550295831,3.8285,130.59,130.52,32.2087]
[1725550296038,3.86112519,130.62,130.52,32.2087]
[1725550296230,5.54009852,130.61,130.52,32.2087]
[1725550296429,3.8288,130.58,130.52,36.0391]
[1725550296634,0.05633586,130.56,130.54,0.05529002]
[1725550296836,0.05670591,130.56,130.54,0.05524617]
[1725550297134,0.05670591,130.56,130.54,0.00244617]
[1725550297339,30.83,130.55,130.43,34.663]
[1725550297635,5.54124339,130.54,130.43,34.72293378]
[1725550298142,3.831,130.51,130.43,34.72293378]
[1725550298331,0.0526113,130.48,130.46,0.05844933]
[1725550298539,0.05412673,130.48,130.46,3.89025436]
[1725550298730,0.05412673,130.48,130.46,0.05795436]
[1725550300236,0.05412673,130.48,130.46,3.89005436]
[1725550300450,0.05412673,130.48,130.46,0.05795436]
[1725550300736,30.83,130.57,130.45,30.83]
[1725550300940,7.6557,130.62,130.43,3.89293378]
[1725550300941,3.91666027,130.58,130.48,30.83]
[1725550301135,30.83,130.6,130.48,30.83]
[1725550301339,5.53965278,130.59,130.51,3.8307]
[1725550301643,0.279,130.61,130.51,3.8307]
[1725550301838,3.88840615,130.57,130.55,0.05353479]
[1725550302050,0.05900615,130.57,130.55,0.05353479]
[1725550302242,3.8294,130.56,130.55,0.05353479]
[1725550302537,0.05900615,130.57,130.46,30.83]
[1725550302739,30.83,130.58,130.44,4.2032]
[1725550303041,30.83,130.58,130.45,30.83]
[1725550303244,30.83,130.58,130.48,3.8317]
[1725550303439,5.53764259,130.57,130.44,2.7824]
[1725550303644,0.05569334,130.52,130.49,0.0547726]
[1725550303838,0.05119623,130.52,130.49,0.05257544]
[1725550304844,3.8312,130.5,130.49,0.05257544]
[1725550305041,0.05119623,130.52,130.49,0.05257544]
[1725550305544,3.8309,130.51,130.49,0.05257544]
[1725550305739,0.05119623,130.52,130.49,0.05257544]
[1725550306042,30.83,130.52,130.4,30.83]
[1725550306246,30.83,130.5,130.39,1.4208]
[1725550306444,30.83,130.52,130.4,3.92210978]
[1725550306744,5.53438918,130.51,130.4,3.92210978]
[1725550307139,0.05386298,130.47,130.44,0.04938798]
[1725550309841,0.05386298,130.47,130.44,30.87938798]
[1725550310243,0.05386298,130.47,130.45,3.8326]
[1725550310637,0.05386298,130.47,130.44,0.04938798]
[1725550311338,3.8326,130.45,130.44,0.04938798]
[1725550311542,0.05386298,130.47,130.44,0.04938798]
[1725550312639,0.05386298,130.47,130.44,3.88218798]
[1725550313240,0.05386298,130.47,130.45,3.8325]
[1725550313446,0.05386298,130.47,130.44,0.04938798]
[1725550313646,0.05386298,130.47,130.44,30.87938798]
[1725550313846,30.83,130.57,130.44,30.83]
[1725550314037,30.83,130.54,130.43,1.3678]
[1725550314446,30.83,130.52,130.43,1.3678]
[1725550314644,3.81173312,130.51,130.43,1.3678]
[1725550314849,3.81173312,130.51,130.46,0.05772562]
[1725550314850,0.0485708,130.48,130.46,0.05772562]
[1725550315747,3.8321,130.47,130.46,0.05772562]
[1725550315949,0.0485708,130.48,130.26,7.6759]
[1725550316141,3.81173312,130.51,130.26,7.6759]
[1725550316142,44.04925855,130.47,130.35,30.83]
[1725550316337,13.21925855,130.46,130.35,30.83]
[1725550316549,5.54707456,130.45,130.35,32.1545]
[1725550316742,30.83,130.47,130.35,32.1545]
[1725550316947,0.05681044,130.42,130.4,0.05767097]
[1725550317142,0.05194134,130.42,130.4,0.05767097]